Cogmind - Beta 12 @@@ ROGUE MODE // 2023.10.17 @ 21:58:38 Player: jpka Result: Self-destructed Performance ------------- Evolutions (1) 500 Regions Visited (2) 400 Robots Destroyed (12) 60 Value Destroyed (309) 309 Prototype IDs (1) 20 Alien Tech Used (0) 0 Bonus (0) 0 TOTAL SCORE: 1289 Bonus ------- None Cogmind --------- Core Integrity 259/400 Matter 300/300 Energy 125/125 System Corruption 0% Temperature Cool (0) Movement Core (350) Ox6 Location -9/Materials Parts ------- > --- POWER (1) -------- Light Ion Engine > --- PROPULSION (2) --- (None) > --- UTILITY (4) ------ Medium Storage Unit Improved Sensor Array > --- WEAPON (2) ------- Heavy Particle Gun Light Cannon > --- INVENTORY (10) --- Aluminum Leg Structural Scanner Improved Terrain Scan Processor ECM Suite Heavy Particle Gun Heavy Particle Gun Mini Grenade Launcher Mining Laser Maul Peak State ------------ > --- POWER ------------ Light Ion Engine > --- PROPULSION ------- Aluminum Leg Aluminum Leg > --- UTILITY ---------- Improved Heat Sink Medium Storage Unit Weight Redist. System Improved Sensor Array > --- WEAPON ----------- EM Shotgun Heavy Particle Gun > --- INVENTORY -------- Structural Scanner Improved Terrain Scan Processor Heavy Particle Gun Heavy Particle Gun Heavy Particle Gun Assault Rifle Assault Rifle Light Cannon Light Cannon Mining Laser [Rating: 20] Favorites ----------- Power Light Ion Engine Engine Light Ion Engine Propulsion Aluminum Leg Leg Aluminum Leg Wheel Compact Wheel Utility Small Storage Unit Device Structural Scanner Storage Small Storage Unit Weapon Light Cannon Energy Gun Heavy Particle Gun Ballistic Gun Assault Rifle Ballistic Cannon Light Cannon Build | -11 -10 -9 ------- Run | Jun Mat Mat Slots Evolved 2 | . . 2 Power . | . . . Propulsion . | . . . Utility 2 | . . 2 Weapon . | . . . Parts Attached 22 | 6 8 8 Power 2 | 1 1 . Engine 2 | 1 1 . Core . | . . . Reactor . | . . . Propulsion 5 | 2 3 . Treads . | . . . Leg 2 | . 2 . Wheel 3 | 2 1 . Hover . | . . . Flight . | . . . Utility 7 | 1 1 5 Device 5 | . 1 4 Storage 2 | 1 . 1 Processor . | . . . Hackware . | . . . Protection . | . . . Artifact . | . . . Weapon 8 | 2 3 3 Energy Gun 3 | 1 . 2 Energy Cannon . | . . . Ballistic Gun 1 | 1 . . Ballistic Cannon 4 | . 3 1 Launcher . | . . . Special Weapon . | . . . Impact Weapon . | . . . Slashing Weapon . | . . . Piercing Weapon . | . . . Special Melee Weapon . | . . . Unidentified Prototypes 1 | . . 1 Parts Lost 9 | . 4 5 Power 1 | . 1 . Propulsion 4 | . 2 2 Utility 2 | . . 2 Weapon 2 | . 1 1 Highest Loss Streak 3 | . 2 3 To Critical Strikes . | . . . Average Slot Usage (%) 94 | . 93 95 Engine 12 | . 13 11 Leg 9 | . . 20 Wheel 12 | . 23 . Device 21 | . 12 30 Storage 12 | . 14 11 Energy Gun 8 | . 4 13 Ballistic Gun 1 | . 2 . Ballistic Cannon 15 | . 21 8 Naked Turns . | . . . Heaviest Build 21 | 12 15 21 Greatest Support 26 | 26 26 26 Greatest Overweight (x) 6 | . . 6 Average Overweight (x) . | . . . Largest Inventory Capacity 10 | 8 8 10 Average Capacity 8 | 6 8 9 Most Carried 10 | 2 8 10 Average Carried 7 | . 7 8 Final Capacity 10 | 8 8 10 Final Carried 9 | 2 7 9 Class Distribution -------------------- 89% | Mutant 10% | Scavenger-Mutant Dominant Class ---------------- Mutant | -10/Materials Mutant | -9/Materials Resources | -11 -10 -9 ----------- Run | Jun Mat Mat Matter Collected 590 | 236 216 138 Remotely . | . . . Salvage Created 307 | . 195 112 Parts 24 | . 12 12 Haulers Intercepted . | . . . Recyclers Shooed . | . . . Parts Field Recycled . | . . . Retrieved Matter . | . . . Parts Self-Destructed . | . . . Prevented . | . . . Kills | -11 -10 -9 ------- Run | Jun Mat Mat Combat Hostiles Destroyed 11 | . 6 5 Guns 5 | . . 5 Cannons 6 | . 6 . Classes Destroyed 3 | . 2 1 Builder 1 | . 1 . Swarmer 4 | . . 4 Grunt 7 | . 6 1 Best Kill Streak 4 | . 2 4 Combat Bots Only 4 | . 2 4 Max Kills in Single Turn 2 | . 1 2 Gunslinging 1 | . . 1 Exploded . | . . . Melee . | . . . Uniques/NPCs Destroyed . | . . . Combat | -11 -10 -9 -------- Run | Jun Mat Mat Damage Taken 1068 | . 483 585 Core 242 | . 101 141 Absorbed by Shields . | . . . Core Remaining (%) 79 | 100 59 . Volleys Fired 39 | . 32 7 Largest 2 | . 2 2 Hottest 100 | . 75 100 Shots Fired 76 | . 62 14 Gun 26 | . 12 14 Cannon 50 | . 50 . Launcher . | . . . Special . | . . . Kinetic 52 | . 52 . Thermal 7 | . . 7 Explosive . | . . . Electromagnetic 17 | . 10 7 Robot Hit Streak 9 | . 7 9 Robot Miss Streak 4 | . 4 3 Penetration Max . | . . . Secondary Targets 2 | . . 2 Max Gunslinging Chain 1 | . . 1 Shots Hit Robots 44 | . 35 9 Core Hits 18 | . 10 8 Critical Kills . | . . . Critical Parts Destroyed . | . . . Critical Strikes 2 | . 1 1 Burn 1 | . . 1 Corrupt 1 | . 1 . Melee Attacks . | . . . Impact . | . . . Slashing . | . . . Piercing . | . . . Sneak Attacks . | . . . Combat Hostiles . | . . . Follow-up Attacks . | . . . Damage Inflicted 697 | . 548 149 Guns 252 | . 103 149 Cannons 445 | . 445 . Explosions . | . . . Melee . | . . . Ramming . | . . . Kinetic 445 | . 445 . Thermal 65 | . . 65 Explosive . | . . . Electromagnetic 187 | . 103 84 Impact . | . . . Slashing . | . . . Piercing . | . . . Highest Corruption . | . . . Average Corruption . | . . . Corruption Purged . | . . . Corruption Blocked . | . . . Overload Shots . | . . . Overflow Damage . | . . . Projectiles . | . . . Explosions . | . . . Melee . | . . . Knockbacks 11 | . 11 . Impact . | . . . Kinetic 9 | . 9 . Secondary 2 | . 2 . Self-Inflicted Damage . | . . . Shots . | . . . Rammed . | . . . Targets Rammed . | . . . Kicked . | . . . Crushed . | . . . Highest Temperature 297 | . 297 99 Average Temperature 90 | . 103 44 Received Heat Transfer 546 | . 312 234 Siege Activations . | . . . Robots Corrupted . | . . . Combat Hostiles . | . . . Parts Fried . | . . . Impact Corruptions . | . . . Robots Melted . | . . . Combat Hostiles . | . . . Parts Melted . | . . . Heat Transferred 185 | . . 185 Parts Sabotaged . | . . . Parts Stolen . | . . . Parts Stripped . | . . . Power Chain Reactions . | . . . Missiles Intercepted . | . . . Alert | -11 -10 -9 ------- Run | Jun Mat Mat Peak Influence 117 | . 106 117 Initial 36 | . . 36 Average 48 | . 41 64 Maximum Alert Level . | . . . Low Security (%) 100 | 100 100 100 Level 1 . | . . . Level 2 . | . . . Level 3 . | . . . Level 4 . | . . . Level 5 . | . . . High Security . | . . . Max Security . | . . . Squads Dispatched 2 | . 1 1 Investigation 1 | . . 1 Extermination . | . . . Reinforcement 1 | . 1 . Assault . | . . . Garrison . | . . . Intercept . | . . . Searches Triggered . | . . . Construction Impeded . | . . . Haulers Reinforced . | . . . Active Scanning Responses . | . . . Cargo Convoy Interrupts . | . . . Stealth | -11 -10 -9 --------- Run | Jun Mat Mat Distress Signals 2 | . 2 . Communications Jammed . | . . . Distress Signals . | . . . Times Spotted 25 | . 14 11 Peak Tracking Total 5 | . 3 5 Tactical Retreats 4 | . 1 3 Traps | -11 -10 -9 ------- Run | Jun Mat Mat Traps Triggered 2 | . 1 1 Indirectly . | . . . Trap Hack Attempts . | . . . Triggered . | . . . Disarmed . | . . . Reprogrammed . | . . . Reused . | . . . Traps Extracted . | . . . Installed . | . . . Triggered . | . . . Machines | -11 -10 -9 ---------- Run | Jun Mat Mat Machines Disabled . | . . . Max in Single Turn . | . . . Machines Repaired . | . . . Machines Sabotaged . | . . . Overloaded Fab Kills . | . . . Hacking | -11 -10 -9 --------- Run | Jun Mat Mat Machines Accessed 1 | . 1 . Terminals 1 | . 1 . Fabricators . | . . . Repair Stations . | . . . Recycling Units . | . . . Scanalyzers . | . . . Garrison Access . | . . . Total Hacks 4 | . 4 . Successful . | . . . Failed 4 | . 4 . Catastrophic . | . . . Database Lockouts . | . . . Manual 4 | . 4 . Terminals 4 | . 4 . Fabricators . | . . . Repair Stations . | . . . Recycling Units . | . . . Scanalyzers . | . . . Garrison Access . | . . . Terminal Hacks . | . . . Fabricator Hacks . | . . . Repair Station Hacks . | . . . Recycling Unit Hacks . | . . . Scanalyzer . | . . . Garrison Access Hacks . | . . . Unauthorized Hacks . | . . . Terminals . | . . . Fabricators . | . . . Repair Stations . | . . . Recycling Units . | . . . Scanalyzers . | . . . Garrison Access . | . . . Data Cores Recovered . | . . . Used . | . . . Hacking Detections 1 | . 1 . Full Trace Events . | . . . Feedback Events . | . . . Feedback Blocked . | . . . Robot Schematics Acquired . | . . . Robots Built . | . . . Authchips . | . . . Time . | . . . Total Robot Build Rating . | . . . Part Schematics Acquired . | . . . Parts Built . | . . . Authchips . | . . . Time . | . . . Total Part Build Rating . | . . . Parts Repaired . | . . . Time . | . . . Parts Recycled . | . . . Recycled Matter . | . . . Retrieved Matter . | . . . Retrieved Components . | . . . Parts Scanalyzed . | . . . Part Schematics Acquired . | . . . Parts Damaged . | . . . Bothacking | -11 -10 -9 ------------ Run | Jun Mat Mat Used RIF Installer . | . . . Robots Hacked . | . . . Non-combat . | . . . Combat . | . . . Robot Hacks Applied . | . . . Relay Couplers Released . | . . . Fabnet Peak Effective % . | . . . Robots Rewired . | . . . Allies Hacked . | . . . Hacks Repelled . | . . . Allies | -11 -10 -9 -------- Run | Jun Mat Mat Total Allies . | . . . Largest Group . | . . . Highest-Rated Group . | . . . Highest-Rated Ally . | . . . Total Orders . | . . . Ally Attacks . | . . . Total Damage . | . . . Kills . | . . . Allies Corrupted . | . . . Allies Melted . | . . . Intel | -11 -10 -9 ------- Run | Jun Mat Mat Robot Analysis Total . | . . . Derelict Logs Recovered . | . . . Drone Launches . | . . . Drone Recoveries . | . . . Exploration | -11 -10 -9 ------------- Run | Jun Mat Mat Turns Passed 1222 | 77 611 534 Spaces Moved 943 | 81 516 346 Core 20 | 16 . 4 Treads . | . . . Legs 350 | . 8 342 Wheels 573 | 65 508 . Hover . | . . . Flight . | . . . Fastest Speed 50 | 50 90 120 Average Speed 106 | 81 92 131 Slowest Speed 350 | 90 120 350 Overloaded Moves . | . . . Propulsion Burnouts . | . . . Robots Hopped . | . . . Cave-ins Triggered . | . . . Exploration Rate (%) 25 | 3 48 25 Regions Visited 2 Branch Regions . Pre-discovered Areas . | . . . Known Exits Taken . | . . . Unknown Exits Taken 2 | 1 1 . Scrap Searched . | . . . Spaces Dug . | . . . Terrain Destroyed . | . . . Melee . | . . . Projectile . | . . . AOE . | . . . Terrain Rammed . | . . . Walls Destroyed . | . . . Machines Disabled . | . . . Actions | -11 -10 -9 --------- Run | Jun Mat Mat Total 1088 | 88 586 414 Wait 40 | . 16 24 Move 941 | 80 515 346 Hop . | . . . Pick Up 30 | 2 12 16 Fast Attach 8 | 6 1 1 Attach 8 | . 4 4 Detach 1 | . . 1 Swap 6 | . 3 3 Drop 15 | . 3 12 Fire 39 | . 32 7 Melee . | . . . Ram . | . . . Kick . | . . . Crush . | . . . Escape Stasis . | . . . Rewire . | . . . Trap . | . . . Miscellaneous . | . . . Route ------- -11/Junkyard -10/Materials (discovered 3 exits: [*Mat x2] / [*Min]) -9/Materials History --------- Turn | Location | Event 18 | -11/Junkyard | Discovered new exit (range 16) 78 | -11/Junkyard | Entered Materials 207 | -10/Materials | Discovered new exit (range 11) 308 | -10/Materials | Build established: Mutant 342 | -10/Materials | Discovered new exit (range 13) 665 | -10/Materials | Discovered new exit (range 7) 689 | -10/Materials | Entered another Materials area 689 | -9/Materials | Evolved 2 slots: Utility x2 1223 | -9/Materials | Self-destructed Last Messages --------------- 01178_ U-05 Engineer lays Concrete. 01182_ T-07 Excavator is excavating. 01184_ Y-45 Defender misfires. 01185_ U-05 Engineer lays Concrete. 01187_ T-07 Excavator is excavating. 01189_ U-05 Engineer lays Concrete. 01191_ T-07 Excavator is excavating. 01191_ U-05 Engineer lays Concrete. 01195_ T-07 Excavator is excavating. 01196_ U-05 Engineer lays Concrete. 01199_ Imp. Heat Sink destroyed. 01202_ Weight Redist. System destroyed. 01205_ T-07 Excavator is excavating. 01205_ U-05 Engineer lays Concrete. 01206_ U-05 Engineer builds a Wall. 01208_ Critical hit (Burn: +37). 01208_ Aluminum Leg destroyed. 01209_ T-07 Excavator is excavating. 01216_ Y-45 Defender misfires. 01220_ Critical hit (Burn: +37). Map ----- +----------------------------------------------------+ | | | | | | | ?????????????????????????????????###### | | ?????????????????????############# | | ?????????????????????# # | | ??#################### +] [ | | ??# # # [ | | ??# + ##+### | | ??# ] [ # ##!#?? | | ??# ] # ## #?? | | ??# """"" + ## #?? | | ??# """"" ############## #?? | | ??# """"" #????????????# #?? | | ??# """"" #????????????# #?? | | ??# """"" #????????????# #?? | | ??# """"" #????????????# #?? | | ??# """"" #????????????# #?? | | ??# [= ##???????????# #?? | | ??# = [= ##########??# #?? | | ??# *%=* ] # ? #?# #?? | | ??# =[ = #?# #?# | | ??######+####Y # ??# #?# | | ?????? * !?# #################??# ### | | ?????#"S + #??????????????????# + | | ?????#""" = # @#??????????????????# ### | | ?????# "" # #??????????????????# #?# | | ?????# ==# #??????????????????# #?# | | ?????# ==# #??????????????????# #?# | | ?????##### ## +??????????????????# #?# | | ??????????### #??????????????????+ #?# | | ????????????# #??????????????????# #?# | | ????????????#+##??????????????????? ??? | | ??????????????????????????????????? ??? | | ???????????????????????????????????T??? | | ??????????????????????????????????? ??# | | ???????????????????????????????????#??? | | ??????????????????????????????????????? | | ??????????????????????????????????????? | | ??????????????????????????????????????? | | ??????????????????????????????????????? | | ??????????????????????????????????????? | | ??????????????????????????????????????? | | ??????????????????????????????????????? | | ??????????????????????????????????????? | | ??????????????????????????????????????? | | ??????????????????????????????????????? | | ??????????????????????????????????????? | | ??????????????????????????????????????? | | ??????????????????????????????????????? | +----------------------------------------------------+ Best States ------------- Heat Dissipation 42 Energy Generation 10 Energy Capacity 125 Matter Stores 300 Matter Capacity 300 Sight Range 16 Robot Scan Range 15 Terrain Scan Density 10 Additional Mass Support 6 Evasion (%) 55 Item Schematics ----------------- None Robot Schematics ------------------ None Fabricated ------------ Nothing Alien Tech Used ----------------- None Achievements -------------- None Challenges ------------ None Game ------ Seed ScrapSuperchargedSource Manual? 0 Play Time 00:28:12 Cumulative 54.5 hours Start 2023.05.15 @ 19:00:45 End 2023.10.17 @ 21:58:38 Sessions 11 Manual Loads 0 Difficulty Rogue Special Mode None Game No. 36 Rogue 36 Adventurer 0 Explorer 0 Win Type - Total 0 Types 0/0/0/0/0/0/0/0/0 Lore% 13 Gallery% 20 Achievement% 19 Wizard Run 0 Options --------- ASCII 1 Keyboard 1 Movement Arrows Keybinds 0 Fullscreen 1 Font 18/SmallcapsGlow Map View 76x50 Tactical HUD 1 Map Filters NONE Filters NONE Steam 1 RUN: 91efbaba-f125-4bfd-b549-e2dad202bdd1